[Event "Czech Open-GM 2022"]
[Site "Pardubice"]
[Date "2022.07.23"]
[Round "2.28"]
[White "Bujnoch, Radek"]
[Black "Skytte, Rasmus"]
[Result "1/2-1/2"]
[ECO "A61"]
[WhiteElo "2191"]
[BlackElo "2349"]
[Annotator "TA"]
[PlyCount "93"]
[EventDate "2022.07.22"]
[EventType "swiss"]
[EventCountry "CZE"]
[SourceTitle "playchess.com"]
[Source "ChessBase"]
[SourceQuality "1"]
[TimeControl "40/5400+30:1800+30"]

{[%evp 26,93,50,41,33,40,48,47,39,32,39,55,73,75,81,81,81,79,75,79,64,73,72,75,68,72,83,-115,-111,-107,53,52,87,61,102,96,105,108,157,148,209,39,39,38,69,46,34,43,54,47,43,10,44,14,25,3,5,0,0,0,11,0,0,0,0,0,0,0,0,0]} 1. d4 {[%emt 0:00:03]} Nf6 {[%emt 0:00:35]} 2. c4 {[%emt 0:00:06]} e6 {[%emt 0:00:32]} 3. Nf3 {[%emt 0:00:43]} c5 {[%emt 0:01:03]} 4. d5 {[%emt 0:00:11]} exd5 {[%emt 0:00:34]} 5. cxd5 {[%emt 0:00:09]} d6 {[%emt 0:00:17]} 6. Nc3 {[%emt 0:00:06]} g6 {[%emt 0:00:33]} 7. Nd2 {[%emt 0:00:11]} Bg7 {[%emt 0:00:26]} 8. e4 {[%emt 0:00:05]} O-O {[%emt 0:00:29]} 9. Be2 {[%emt 0:00:06]} Na6 {[%emt 0:00:15]} 10. O-O {[%emt 0:00:07]} Nc7 {[%emt 0:00:13]} 11. a4 {[%emt 0:00:07]} Re8 {[%emt 0:00:22]} 12. f3 {[%emt 0:00:20]} b6 {[%emt 0:00:18]} 13. Nc4 {[%emt 0:02:04]} Ba6 {[%emt 0:01:12]} 14. Rb1 {[%emt 0:00:12]} Bxc4 {[%emt 0:02:50] A79: Modern Benoni: Classical: 9...Re8 10 Nd2 Na6 11 f3.} 15. Bxc4 {[%emt 0:00:06]} a6 {[%emt 0:01:30]} 16. b4 {[%emt 0:00:06]} Nd7 {[%emt 0:00:21] White is slightly better.} 17. Bd2 {[%emt 0:00:09]} Qf6 {[%emt 0:03:43] Strongly threatening ...Qd4+.} 18. Kh1 {[%emt 0:00:11]} b5 {[%emt 0:03:27]} 19. axb5 {[%emt 0:00:23]} Qd4 {[%emt 0:00:11]} 20. Be2 {[%emt 0:01:43] And now bxc5 would win. This bishop pair is nice.} ({Much worse is} 20. Qe2 $6 Nb6 21. Ba2 cxb4 $11) 20... cxb4 {[%emt 0:05:56]} 21. Na4 {[%emt 0:02:07]} Nxb5 {[%emt 0:06:54][%cal Ob4b3] ...b3! is the strong threat.} 22. Rxb4 {[%emt 0:01:43]} Qa7 {[%emt 0:04:18]} 23. Bxb5 {[%emt 0:02:54]} axb5 {[%emt 0:00:09]} 24. Nc3 {[%emt 0:00:05] [#]} Qc5 $146 {[%emt 0:09:55]} ({Predecessor:} 24... Qb6 25. Rxb5 Qa6 26. Rb1 Rec8 27. Ne2 Qa2 28. Rc1 Rxc1 29. Nxc1 Qb2 30. Nd3 Qb5 {1-0 (42) Guichard,P (2394)-Nikolic,V (2221) Sitges 2021}) 25. Qb3 {[%emt 0:22:06]} ({Reject} 25. Nxb5 Ra1 26. Qe2 Ra2 $11) 25... Rec8 {[%emt 0:22:05][%cal Rg7c3]} 26. Rxb5 $2 {[%emt 0:15:38]} (26. Nxb5 $16 {is forced if you want to stay better. Hoping for Be3.} Qc2 27. Qxc2 (27. Nxd6 Qxd2 28. Nxc8 Rxc8 $14) 27... Rxc2 28. Be3) 26... Qd4 $17 {[%emt 0:12:55] Against Be3} 27. Nb1 {[%emt 0:02:22]} Ra1 $2 {[%emt 0:04:46]} (27... Nc5 $1 $17 {[%cal Rc5b3]} 28. Qc3 Qa4) 28. Be3 $1 $14 {[%emt 0:02:59]} Qe5 {[%emt 0:06:41][%cal Oc8c3]} 29. Rb7 $1 $36 {[%emt 0:05:54][%mdl 2048] White has the initiative.} Nf8 {[%emt 0:08:28][%cal Oc8c3]} 30. Rd1 {[%emt 0:14:48][%cal Ob7f7]} Qe8 {[%emt 0:03:41]} 31. Bf4 {[%emt 0:13:31] White is more active.} Be5 {[%emt 0:00:46]} ({Black should try} 31... Ra6 32. Nd2 Nd7) 32. Bxe5 $16 {[%emt 0:03:05]} Qxe5 {[%emt 0:00:05] [#]} (32... dxe5 $16 33. h3 Qa4 34. Qxa4 Rxa4) 33. Rb8 $2 {[%emt 0:00:36]} ({White must play} 33. Rxf7 $1 $18 {[%mdl 512] aiming for Rb7.} Kxf7 34. Qb7+ Kg8 35. Qxc8) 33... Rxb8 $14 {[%emt 0:00:50]} 34. Qxb8 {[%emt 0:00:03]} Kg7 {[%emt 0:00:22]} 35. Qc8 {[%emt 0:01:39]} f5 {[%emt 0:00:44]} 36. Qb7+ {[%emt 0:07:29]} Kg8 {[%emt 0:00:31]} 37. exf5 {[%emt 0:02:25]} gxf5 {[%emt 0:00:01]} 38. Qb5 {[%emt 0:01:35]} Ra2 {[%emt 0:00:28]} 39. Qd3 {[%emt 0:00:50]} (39. Qc4 $5 {[%cal Rc4a2]} Ra5 40. h3 $14) 39... Re2 {[%emt 0:00:42]} 40. Nd2 {[%emt 0:00:41]} Re1+ {[%emt 0:00:44] The position is equal.} 41. Rxe1 {[%emt 0:30:04]} Qxe1+ $11 {[%emt 0:30:01][%mdl 4096] Endgame KQN-KQN} 42. Nf1 {[%emt 0:00:13]} Ng6 {[%emt 0:00:53]} 43. h3 {[%emt 0:00:00]} Nf4 {[%emt 0:00:00]} 44. Qc4 {[%emt 0:00:00]} Ne2 {[%emt 0:00:00]} 45. Qc8+ {[%emt 0:00:00]} Kg7 {[%emt 0:00:00]} 46. Qd7+ {[%emt 0:00:00]} Kg8 {[%emt 0:00:00]} 47. Qe8+ {[%emt 0:00:00] Weighted Error Value: White=0.25 (precise) /Black=0.22 (precise)} 1/2-1/2

[Event "Czech Open-GM 2022"]
[Site "Pardubice"]
[Date "2022.07.23"]
[Round "2.29"]
[White "Rabatin, Jakub"]
[Black "Dubinski, Mateusz"]
[Result "0-1"]
[ECO "B92"]
[WhiteElo "2349"]
[BlackElo "2206"]
[Annotator "TA"]
[PlyCount "88"]
[EventDate "2022.07.22"]
[EventType "swiss"]
[EventCountry "CZE"]
[SourceTitle "playchess.com"]
[Source "ChessBase"]
[SourceQuality "1"]
[TimeControl "40/5400+30:1800+30"]

{[%evp 17,88,12,20,-9,0,0,-4,-11,-11,-12,-10,-30,-44,-63,-40,-72,-64,-60,-37,-31,-43,-93,-87,-88,-74,-75,-81,-107,-89,-102,-102,-116,-110,-118,-112,-109,-122,-135,-110,-230,-223,-220,-180,-480,-448,-475,-462,-407,-367,-554,-501,-537,-528,-499,-468,-513,-500,-585,-531,-598,-597,-585,-584,-756,-733,-29957,-29960,-29975,-29976,-29974,-29973,-6227,-2091]} 1. e4 {[%emt 0:00:02]} c5 {[%emt 0:00:06]} 2. Nf3 {[%emt 0:00:04]} d6 {[%emt 0:00:05]} 3. d4 {[%emt 0:00:06]} cxd4 {[%emt 0:00:05]} 4. Nxd4 {[%emt 0:00:04]} Nf6 {[%emt 0:00:05]} 5. Nc3 {[%emt 0:00:03]} a6 {[%emt 0:00:05]} 6. Be2 {[%emt 0:04:16]} e5 {[%emt 0:00:20]} 7. Nb3 {[%emt 0:00:05]} Be7 {[%emt 0:00:05]} 8. O-O {[%emt 0:04:12]} O-O {[%emt 0:00:22]} 9. Qd3 {[%emt 0:00:17]} Be6 {[%emt 0:02:01]} 10. Nd5 {[%emt 0:02:07] B92: Sicilian Najdorf: 6 Be2.} Nxd5 $1 {[%emt 0:00:43] 10...Nxd5 scores better than 10...Bxd5.} 11. exd5 {[%emt 0:00:11]} Bc8 {[%emt 0:00:04]} 12. c4 {[%emt 0:20:59] The position is equal.} Nd7 {[%emt 0:03:12]} 13. Be3 a5 {[%emt 0:27:13] [#]} 14. Rac1 $146 {[%emt 0:18:52]} ({Predecessor:} 14. Kh1 Bg5 15. Rac1 b6 16. Bg4 Bxe3 17. fxe3 Nc5 18. Nxc5 bxc5 19. Bxc8 Rxc8 20. e4 {½-½ (49) Dastan,B (2565)-Mchedlishvili,M (2571) Konya 2019}) 14... a4 {[%emt 0:16:02]} 15. Na1 {[%emt 0:01:11]} Bg5 {[%emt 0:00:39]} 16. b4 {[%emt 0:14:25]} axb3 $1 {[%emt 0:05:00]} 17. axb3 {[%emt 0:00:06]} f5 {[%emt 0:06:44] [#] Hoping for ...e4.} (17... Nc5 $5 {[%cal Rc5d3]} 18. Qd2 Bxe3 19. Qxe3 Qb6 $17) 18. Bxg5 {[%emt 0:10:56]} Qxg5 {[%emt 0:00:02]} 19. b4 {[%emt 0:01:18]} (19. Qg3 $15 Qd2 20. Rfe1) 19... e4 $17 {[%emt 0:13:28]} 20. Qg3 {[%emt 0:02:43]} Qd2 {[%emt 0:02:34][%csl LRb4,LRe2] Threatens to win with ...f4.} 21. Qe3 {[%emt 0:08:36]} Qxb4 {[%emt 0:00:49]} 22. Nc2 {[%emt 0:00:10]} Qc5 {[%emt 0:01:02]} 23. Ra1 {[%emt 0:04:54]} Rxa1 {[%emt 0:02:24]} 24. Rxa1 {[%emt 0:00:05]} Qxe3 {[%emt 0:00:28]} 25. fxe3 {[%emt 0:00:20]} Nc5 {[%emt 0:01:17]} 26. Nd4 {[%emt 0:02:39]} Kf7 {[%emt 0:00:51]} 27. Nb5 {[%emt 0:02:37]} Ke7 {[%emt 0:03:08]} 28. Ra8 {[%emt 0:02:27]} (28. h4 $17 {was necessary.}) 28... Bd7 $19 {[%emt 0:04:28]} 29. Rxf8 {[%emt 0:00:07]} Kxf8 {[%emt 0:00:02]} 30. Nxd6 $2 {[%emt 0:00:33][%mdl 4096] [#] Endgame KBN-KBN} (30. Na3) 30... Ke7 {[%emt 0:00:15]} 31. Nb5 {[%emt 0:00:05]} Bxb5 {[%emt 0:00:04]} 32. cxb5 {[%emt 0:00:03] KB-KN} Kd6 {[%emt 0:01:42]} 33. Bc4 {[%emt 0:00:26]} (33. g4 {is a better defense.} fxg4 34. Bxg4) 33... Nd7 {[%emt 0:02:28]} 34. Kf2 {[%emt 0:01:41]} Nb6 {[%emt 0:01:36]} 35. Bb3 {[%emt 0:00:44]} Nxd5 {[%emt 0:00:16]} 36. g3 {[%emt 0:00:29]} h6 {[%emt 0:01:37][%cal Bh7h6,Bh6g5][%mdl 32]} 37. h3 g5 38. h4 {[%emt 0:01:04]} Kc5 {[%emt 0:04:53]} 39. hxg5 {[%emt 0:00:22]} hxg5 {[%emt 0:00:08]} 40. b6 {[%emt 0:00:39]} Kd6 {[%emt 0:01:13]} 41. g4 {[%emt 0:08:40]} fxg4 {[%emt 0:00:01]} 42. Kg3 {[%emt 0:00:08]} Nxe3 {[%emt 0:00:33]} 43. Ba4 {[%emt 0:01:36]} Kc5 {[%emt 0:01:03]} 44. Be8 {[%emt 0:00:16]} Nd5 {[%emt 0:00:34] Weighted Error Value: White=0.57/Black=0.05 (flawless)} 0-1

[Event "Czech Open-GM 2022"]
[Site "Pardubice"]
[Date "2022.07.23"]
[Round "2.30"]
[White "Soham Datar"]
[Black "Simek, Petr"]
[Result "1-0"]
[ECO "C78"]
[WhiteElo "2111"]
[BlackElo "2348"]
[Annotator "TA"]
[PlyCount "107"]
[EventDate "2022.07.22"]
[EventType "swiss"]
[EventCountry "CZE"]
[SourceTitle "playchess.com"]
[Source "ChessBase"]
[SourceQuality "1"]
[TimeControl "40/5400+30:1800+30"]

{[%evp 21,107,0,0,0,0,0,37,37,42,45,53,53,67,57,69,64,85,82,129,105,101,32,58,0,72,62,89,95,107,83,139,135,302,257,246,0,274,272,275,271,247,160,161,162,246,229,218,206,183,0,0,0,0,0,0,0,-4,-4,0,0,558,556,546,524,652,246,1535,1483,1386,1330,1322,910,817,229,222,0,0,0,0,-37,-37,-42,684,643,29982,29983,1704,1522]} 1. e4 {[%emt 0:00:04]} e5 {[%emt 0:09:18]} 2. Nf3 {[%emt 0:00:15]} Nc6 {[%emt 0:00:06]} 3. Bb5 {[%emt 0:00:05]} a6 {[%emt 0:00:08]} 4. Ba4 {[%emt 0:00:21]} Nf6 {[%emt 0:00:10]} 5. O-O {[%emt 0:00:08]} b5 {[%emt 0:01:11]} 6. Bb3 {[%emt 0:00:05]} Bc5 {[%emt 0:00:05]} 7. c3 {[%emt 0:00:10]} d6 {[%emt 0:00:06]} 8. d4 {[%emt 0:00:41]} Bb6 {[%emt 0:00:07]} 9. Be3 {[%emt 0:01:27]} O-O {[%emt 0:15:19]} 10. Nbd2 {[%emt 0:01:47]} h6 {[%emt 0:00:38]} 11. h3 {[%emt 0:00:20]} Re8 {[%emt 0:00:20]} 12. Bc2 {[%emt 0:00:58] C78: Ruy Lopez: Archangelsk and Möller Defences.} exd4 {[%emt 0:08:03]} 13. cxd4 {[%emt 0:00:06][%cal Bc3d4,Bd4d5][%mdl 32]} Nb4 {[%emt 0:00:10]} 14. Bb1 $1 {[%emt 0:00:05] White is slightly better.} c5 {[%emt 0:00:31]} 15. d5 {[%emt 0:00:47]} a5 $1 {[%emt 0:13:31]} 16. a3 {[%emt 0:00:14]} Na6 {[%emt 0:00:11] [#]} 17. b3 $146 {[%emt 0:00:07] Inhibits a4.} ({Predecessor:} 17. a4 Bd7 18. axb5 Bxb5 19. Re1 Nb4 20. Ra3 Ra7 21. Nh2 c4 22. Nhf1 Bxe3 23. Raxe3 {1-0 (51) Milliet,S (2390)-Maurizzi,M (2489) Chartres 2021}) 17... Bd7 {[%emt 0:10:41]} 18. Re1 {[%emt 0:02:45]} Rc8 {[%emt 0:02:22]} 19. Bd3 {[%emt 0:21:06] Inhibits c4.} a4 {[%emt 0:12:12]} (19... Ba7 $142) 20. bxa4 $16 {[%emt 0:00:29]} c4 {[%emt 0:00:07]} 21. Bc2 {[%emt 0:07:32]} (21. axb5 $16 {aiming for Bxb6.} Bxb5 22. Bf1) 21... bxa4 {[%emt 0:11:21]} 22. Rb1 {[%emt 0:12:20]} (22. Bxb6 $14 Qxb6 23. e5 dxe5 24. Nxe5) 22... Bxe3 {[%emt 0:02:48]} (22... Ba5 $1 $11 {remains equal.}) 23. Rxe3 {[%emt 0:00:02]} Qa5 {[%emt 0:00:23] Against Rc3} 24. Nd4 {[%emt 0:01:13]} c3 {[%emt 0:10:45]} 25. Nf1 {[%emt 0:00:08]} Rc7 {[%emt 0:00:05]} (25... Rc4 $142) 26. Ng3 $1 {[%emt 0:00:34] Rf3 is the strong threat.} Qc5 $2 {[%emt 0:01:11]} (26... Nc5 $16) 27. Qd3 {[%emt 0:01:49]} (27. Bxa4 Bxa4 28. Qxa4 c2 $16) 27... Qc4 {[%emt 0:01:37]} 28. Qd1 {[%emt 0:03:23]} ({White should try} 28. Qxc4 $18 Rxc4 29. Ndf5 Bxf5 30. Nxf5) 28... Nc5 {[%emt 0:00:30][%mdl 8192]} (28... Qc5 $1 $11) 29. Rb4 $18 {[%emt 0:00:27]} Qa2 {[%emt 0:00:10]} 30. Rxc3 {[%emt 0:01:07]} Rec8 {[%emt 0:00:05]} 31. Ndf5 {[%emt 0:02:10]} Na6 {[%emt 0:00:50]} 32. Bb1 {[%emt 0:17:34]} Qa1 {[%emt 0:00:32]} (32... Rxc3 {keeps fighting.} 33. Bxa2 Rc1) 33. Rxc7 {[%emt 0:01:42]} (33. Ne7+ Kf8 34. Rxc7 (34. Nxc8 $2 Qxc3 35. Rb6 Qxa3 $19) 34... Rxc7 $17) 33... Rxc7 {[%emt 0:00:02]} 34. Rb6 {[%emt 0:01:03]} (34. Nxd6 $2 Nxb4 35. axb4 a3 $19) 34... Qxa3 {[%emt 0:00:08] Threatens to win with ...Rc1.} 35. Ne7+ $2 {[%emt 0:01:34]} (35. Rxa6 $2 Rc1 36. Bc2 (36. Ra8+ $2 Kh7 $19) 36... Rxd1+ 37. Bxd1 Bxf5 38. Ra8+ Kh7 39. Nxf5 Qa1 $19) ({White should play} 35. Kh2 $1 $18 Rc1 36. Qd4) 35... Kf8 $11 {[%emt 0:00:09]} 36. Nc6 $36 {[%emt 0:00:05][%mdl 2048] White has good play.} ({Wrong is} 36. Rxa6 $2 Rc1 37. Bc2 Kxe7 $19) 36... Nc5 {[%emt 0:00:48]} 37. Kh2 {[%emt 0:06:33]} Rb7 {[%emt 0:00:26]} 38. Rxb7 {[%emt 0:00:29]} Nxb7 {[%emt 0:00:02]} 39. Bc2 {[%emt 0:01:10]} Nc5 {[%emt 0:00:16]} 40. Qd4 {[%emt 0:01:32]} Qa2 $2 {[%emt 0:00:41][%mdl 8192]} (40... Ne8 $11 {and Black has nothing to worry.}) 41. Nb4 $18 {[%emt 0:30:11]} Qa3 {[%emt 0:03:04]} 42. e5 {[%emt 0:00:00]} Nb3 {[%emt 0:03:25]} 43. Qb6 {[%emt 0:00:00]} (43. Bxb3 dxe5 44. Qc5+ Kg8 45. Bc2) 43... dxe5 {[%emt 0:00:18]} (43... Ne8 44. e6 (44. exd6 Qc1 $18) 44... fxe6) 44. Qd6+ {[%emt 0:00:00]} Kg8 {[%emt 0:00:11]} 45. Qb8+ $1 {[%emt 0:00:00]} Be8 {[%emt 0:00:17]} 46. Ne4 {[%emt 0:00:00]} Kf8 {[%emt 0:00:49]} 47. Nxf6 $2 {[%emt 0:00:00]} (47. d6 {White threatens Nxf6 and mate.} Qc1 48. Nd5 $1 {[%mdl 512]}) 47... gxf6 {[%emt 0:00:04] [#]} 48. Bf5 $2 {[%emt 0:00:00]} ({White must play} 48. d6 $1 $18 {[%cal Rd6d7] Intending d7 and mate.} Nc5 49. Bf5) 48... Kg7 $11 {[%emt 0:09:54][%cal Ob3d4]} 49. Nc2 {[%emt 0:00:00]} Qc1 {[%emt 0:00:32] And now ...Qf4+ would win.} 50. Ne3 {[%emt 0:00:00] [#]} Nd4 $1 {[%emt 0:00:51][%cal Oa4a3] White must now prevent ...a3!} 51. Bg4 {[%emt 0:00:00] [#]} (51. Qxe8 Ne2) 51... a3 $2 {[%emt 0:00:30][%mdl 8192]} 52. Qxe8 $18 {[%emt 0:00:00]} Qc7 {[%emt 0:13:51]} 53. Bh5 {[%emt 0:00:00]} e4+ {[%emt 0:01:07]} 54. g3 {[%emt 0:00:00] Weighted Error Value: White=0.50/Black=0.73} 1-0

[Event "Czech Open-GM 2022"]
[Site "Pardubice"]
[Date "2022.07.23"]
[Round "2.31"]
[White "Stauskas, Lukas"]
[Black "Mondrzycki, Bartlomiej"]
[Result "1/2-1/2"]
[ECO "E11"]
[WhiteElo "2348"]
[BlackElo "2180"]
[Annotator "TA"]
[PlyCount "116"]
[EventDate "2022.07.22"]
[EventType "swiss"]
[EventCountry "CZE"]
[SourceTitle "playchess.com"]
[Source "ChessBase"]
[SourceQuality "1"]
[TimeControl "40/5400+30:1800+30"]

{[%evp 10,116,32,26,18,20,21,18,31,36,30,28,32,21,33,27,31,20,45,40,54,46,58,31,54,18,33,30,36,0,23,-25,0,0,27,36,31,52,51,38,43,30,43,10,36,37,62,14,22,22,5,13,10,-49,-28,-27,-35,-27,-33,-34,-14,-47,-18,-43,-30,-140,-139,-137,-95,-134,0,-68,-18,-135,-142,-160,-144,-112,0,-175,-185,-142,-52,-170,-90,-100,-83,-81,-86,-85,-77,-91,-72,-100,-82,-84,-58,-60,-60,-59,-61,-60,-56,-59,-58,-57,0,-46,0]} 1. d4 {[%emt 0:00:03]} Nf6 {[%emt 0:00:02]} 2. c4 {[%emt 0:00:08]} e6 {[%emt 0:00:06]} 3. Nf3 {[%emt 0:00:07]} Bb4+ {[%emt 0:00:06]} 4. Nbd2 {[%emt 0:00:06]} O-O {[%emt 0:00:08]} 5. a3 {[%emt 0:00:08]} Be7 {[%emt 0:00:06]} 6. e4 {[%emt 0:00:08]} d6 {[%emt 0:00:02][%cal Oe6e5] E11: Bogo-Indian.} 7. Be2 $1 {[%emt 0:00:11] The main line 7.Be2 scores better than 7.Bd3.} Nfd7 {[%emt 0:00:03]} 8. b4 {[%emt 0:00:52]} e5 {[%emt 0:00:08] The position is equal.} 9. d5 {[%emt 0:00:16]} a5 {[%emt 0:00:07]} 10. Bb2 {[%emt 0:00:10]} axb4 {[%emt 0:02:02]} 11. axb4 {[%emt 0:00:09]} Rxa1 {[%emt 0:00:05]} 12. Qxa1 {[%emt 0:01:15]} c6 {[%emt 0:00:22]} 13. dxc6 {[%emt 0:06:50] [#]} bxc6 $146 {[%emt 0:05:19]} ({Predecessor:} 13... Nxc6 14. Bc3 Nb6 15. O-O Be6 16. b5 Nb8 17. c5 dxc5 18. Nxe5 Bf6 19. Rd1 N8d7 20. Nxd7 Bxc3 21. Qxc3 Nxd7 {½-½ (29) Gelfand,B (2686)-Grischuk,A (2759) Amsterdam 2019}) 14. O-O {[%emt 0:02:30]} c5 {[%emt 0:04:17]} 15. b5 {[%emt 0:04:25]} Nb6 {[%emt 0:13:42]} 16. Rd1 {[%emt 0:28:28]} Be6 {[%emt 0:11:20]} 17. Bc3 {[%emt 0:09:32]} N8d7 {[%emt 0:04:07]} 18. Qa7 {[%emt 0:02:34]} Qe8 {[%emt 0:21:12]} 19. Qa2 {[%emt 0:08:28]} g6 {[%emt 0:09:17]} 20. Nf1 {[%emt 0:06:08]} (20. Qc2 $142) 20... f5 {[%emt 0:01:23]} 21. Ne3 {[%emt 0:01:02]} Qf7 {[%emt 0:03:02]} (21... Qa8 $5 {[%cal Ra8a2]} 22. Qc2 (22. Qxa8 Rxa8 23. Ra1 Rxa1+ 24. Bxa1 fxe4 $15) 22... Qxe4 23. Qxe4 fxe4 $11) 22. Nd2 {[%emt 0:07:20]} (22. exf5 gxf5 23. h3 f4 $17) 22... Bg5 {[%emt 0:02:31]} 23. Ndf1 {[%emt 0:00:31]} fxe4 {[%emt 0:04:20]} 24. Be1 {[%emt 0:00:43]} Qe7 {[%emt 0:08:46]} 25. Qc2 {[%emt 0:02:33][%mdl 1024] White has compensation.} Nf6 {[%emt 0:00:49]} 26. Ra1 {[%emt 0:01:14]} (26. Ba5 $5 {[%cal Ra5b6]} Nc8 27. Ng3 $11) 26... Bc8 {[%emt 0:02:09]} 27. Ba5 {[%emt 0:00:53]} Nbd7 {[%emt 0:00:14]} 28. Bc7 {[%emt 0:02:33] White is more active.} (28. Qd2 $14) 28... Ne8 $1 $11 {[%emt 0:01:16]} 29. Ra7 {[%emt 0:00:38] aiming for Nd5.} Nxc7 {[%emt 0:03:10]} 30. Rxc7 {[%emt 0:00:05] Black must now prevent Bg4.} Qd8 $1 {[%emt 0:01:07]} 31. Rc6 {[%emt 0:05:38]} (31. Nd5 Nb6 $1 {[%mdl 512]} 32. Rxc8 (32. Qxe4 $2 Bf5 $19) 32... Nxc8 $17) (31. Ra7 $11) 31... Nb8 {[%emt 0:00:24]} (31... Qf6 $2 32. Bg4 $18) 32. Rxc8 {[%emt 0:02:38]} Qxc8 {[%emt 0:00:02]} 33. Qxe4 {[%emt 0:00:41]} Bxe3 {[%emt 0:00:03]} 34. Nxe3 {[%emt 0:00:08]} Kh8 {[%emt 0:00:17]} 35. Bg4 {[%emt 0:00:29]} Qc7 {[%emt 0:04:08]} 36. h4 {[%emt 0:04:11]} Qa5 {...Qe1+ is the strong threat.} 37. Qc2 (37. Nf1 $11 {remains equal.}) 37... Qe1+ $17 {[%emt 0:01:45]} 38. Nf1 {[%emt 0:02:59]} Rf4 {[%emt 0:00:32]} 39. Be6 {[%emt 0:00:24]} Re4 {[%emt 0:00:32]} (39... Rxh4 $17 {Hoping for ...Rd4.} 40. Qa2 Rf4) 40. Qd3 {[%emt 0:00:53]} ({White should play} 40. Qb3 $1 $11 Rxh4 41. g3 Rh1+ 42. Kxh1 Qxf1+ 43. Kh2 Qxf2+ 44. Kh3) 40... Rd4 $1 $15 (40... Rxh4 41. Qxd6 Rf4 42. Qxb8+ Kg7 43. Qc7+ Kf6 44. Qf7+ Kg5 45. Qe7+ Kh5 46. Qxh7+ Kg5 47. f3 $18) 41. Qf3 {[%emt 0:01:53]} (41. Qa3 $1 $11 {keeps the balance.} Rf4 42. f3 Qxh4 43. Qa7) 41... Rf4 $17 {[%emt 0:02:33]} 42. Qg3 Kg7 {[%emt 0:06:25]} 43. h5 {[%emt 0:01:11]} Kf6 {[%emt 0:00:28]} (43... Rf6 $17 44. Bg4 e4) 44. hxg6 $2 {[%emt 0:00:55]} hxg6 $19 {[%emt 0:00:03]} (44... Kxe6 $2 45. gxh7 Rf8 46. Qg6+ Ke7 47. Qg7+ Rf7 48. Qg5+ Kd7 49. h8=Q $18) 45. Bg4 {[%emt 0:00:30]} g5 {[%emt 0:05:29]} ({But not} 45... Rxc4 46. Qh4+ Kg7 47. g3 (47. Qe7+ Kh6 $14) 47... Rxg4 48. Qxg4 $14) ({Better is} 45... Kg7 $1 $17 46. Be6 Qa1) 46. Bf3 {[%emt 0:01:42] [#]} (46. b6 $15) 46... e4 {[%emt 0:04:44]} ({And not} 46... Rxc4 47. Qh3 Rc1 48. Qh6+ Ke7 49. Qxg5+ Kd7 50. Qg7+ Ke8 51. Qg8+ Ke7 52. Qh7+ Kf8 53. Qh8+ Ke7 54. Qh7+ Kf8 55. Qh8+ Ke7 56. Qh7+ $11) (46... Nd7 $1 $19 {[%cal Rd7b6] Threatens to win with ...Nb6.} 47. Qh3 Ke7 48. Qh7+ Rf7) 47. Bg4 $17 {[%emt 0:01:08]} Ke7 {[%emt 0:02:44]} 48. Bh3 {[%emt 0:02:02] [#]} Rf6 $1 {[%emt 0:02:47]} 49. Qe3 {[%emt 0:02:05]} Qxe3 {[%emt 0:01:21]} 50. Nxe3 {[%emt 0:00:05][%mdl 4096] Endgame KRN-KBN} Kd8 51. Bf5 {[%emt 0:00:35]} Nd7 {[%emt 0:02:59]} 52. Bxe4 {[%emt 0:00:07]} Nb6 {[%emt 0:00:14]} 53. f3 {[%emt 0:00:55]} Rf7 {[%emt 0:02:01]} 54. Kf2 {[%emt 0:04:27]} Ra7 {[%emt 0:00:13]} 55. Ke2 $1 {[%emt 0:00:22]} Ra2+ {[%emt 0:02:34]} 56. Kd3 {[%emt 0:00:39]} Ra3+ {[%emt 0:00:02]} 57. Kd2 {[%emt 0:00:26]} Ra2+ {[%emt 0:03:20]} 58. Kd3 {[%emt 0:00:09]} Ra3+ {[%emt 0:00:07] Whites escaped into a draw.  Weighted Error Value: White=0.24 (precise) /Black=0.17 (very precise)} (58... Nd7 $15) 1/2-1/2